fUST/lending_fUST_20260201
["ID","MTS","AMOUNT","RATE_DAILY","PERIOD"]
[404198165,1769943032083,-500.0,0.00013273,2]
[404198166,1769943032093,-1744.70656001,0.00013273,2]
[404198167,1769943032102,-527.31612557,0.00013273,2]
[404198168,1769943032111,-500.0,0.00013273,2]
[404198169,1769943032120,-500.0,0.00013273,2]
[404198170,1769943032129,-500.0,0.00013273,2]
[404198171,1769943032137,-254.4066558,0.00013273,2]
[404198172,1769943032147,-740.73958333,0.00028,7]
[404198173,1769943032156,-740.73958333,0.00028,3]
[404198174,1769943032165,-740.73958333,0.00028,7]
[404198175,1769943032174,-740.73958333,0.00028,3]
[404198176,1769943032183,-740.73958333,0.00029,10]
[404198177,1769943032193,-740.73958333,0.00029,10]
[404198178,1769943032202,-5073.07886323,0.00029903,2]
[404198179,1769943032211,-740.73958333,0.00030124,2]
[404198180,1769943032221,-2041.35760849,0.00032875,2]
[404198181,1769943032232,-500.0,0.00034181,7]
[404198182,1769943032241,-500.0,0.00034181,7]
[404198183,1769943032250,-500.0,0.00034181,7]
[404198184,1769943032259,-500.0,0.00034181,7]
[404198185,1769943032268,-500.0,0.00034181,7]
[404198186,1769943032278,-243.71209512,0.00034181,7]
[404198231,1769943044588,-374.6321289,0.00034181,7]
[404198232,1769943044597,-501.3678711,0.00034183,5]
[404198246,1769943046181,-686.71739896,0.00034183,5]
[404198247,1769943046190,-913.08248976,0.00034183,5]
[404198248,1769943046200,-523.4653489,0.00034222,2]
[404198249,1769943046209,-335.78767669,0.00034503,7]
[404198250,1769943046218,-689.74257738,0.00034763,7]
[404198251,1769943046227,-2000.0,0.00035667,15]
[404198252,1769943046236,-168.39084709,0.00036,5]
[404198253,1769943046244,-500.0,0.00036244,60]
[404198254,1769943046252,-2502.50266896,0.00036257,2]
[404198255,1769943046261,-3057.8644413,0.00036357,2]
[404198256,1769943046268,-181.1976284,0.00036357,2]
[404198257,1769943046276,-248.702,0.00036357,45]
[404198258,1769943046284,-172.6041725,0.00036357,2]
[404198259,1769943046292,-500.0,0.00036381,60]
[404198260,1769943046302,-254.83886177,0.00036393,2]
[404198262,1769943046311,-536.95,0.0003643,10]
[404198264,1769943046320,-1023.93,0.0003643,10]
[404198265,1769943046328,-853.28,0.0003643,10]
[404198266,1769943046338,-404.8,0.00036438,20]
[404198267,1769943046348,-25991.46285557,0.0003644,30]
[404198268,1769943046359,-722.38198833,0.0003644,30]
[404198269,1769943046404,220.10144518,0.00037581,120]
[404198270,1769943049453,500.0,0.00037581,120]
[404198271,1769943049713,433.86773972,0.00037581,120]
[404198272,1769943059780,213.04217379,0.00037581,120]
[404198275,1769943073145,206.26125569,0.00037581,120]
[404198279,1769943093332,405.05852435,0.00037581,120]
[404198280,1769943094146,500.0,0.00037581,120]
[404198281,1769943094547,315.39939734,0.00037581,120]
[404198282,1769943094926,356.35337642,0.00037581,120]
[404198283,1769943104338,500.0,0.00037581,120]
[404198284,1769943104580,500.0,0.00037581,120]
[404198285,1769943104816,500.0,0.00037581,120]
[404198286,1769943105060,500.0,0.00037581,120]
[404198287,1769943105298,230.62289444,0.00037581,120]
[404198288,1769943111692,522.11625769,0.00037581,120]
[404198289,1769943116537,500.0,0.00037581,120]
[404198290,1769943116786,337.31071903,0.00037581,120]
[404198291,1769943118552,177.28899582,0.00037581,120]
[404198292,1769943120779,226.75929763,0.00037581,120]
[404198293,1769943124291,601.06060134,0.00037581,120]
[404198294,1769943125089,500.0,0.00037581,120]
[404198295,1769943125321,500.0,0.00037581,120]
[404198296,1769943125638,500.0,0.00037581,120]
[404198297,1769943125886,565.29632684,0.00037581,120]
[404198298,1769943127725,500.0,0.00037581,120]
[404198299,1769943127996,500.0,0.00037581,120]
[404198300,1769943128260,178.46549075,0.00037581,120]
[404198301,1769943130793,500.0,0.00037581,120]
[404198302,1769943131145,500.0,0.00037581,120]
[404198303,1769943131393,500.0,0.00037581,120]
[404198304,1769943131642,500.0,0.00037581,120]
[404198305,1769943131873,500.0,0.00037581,120]
[404198306,1769943132108,623.80358577,0.00037581,120]
[404198307,1769943134705,405.54582546,0.00037581,120]
[404198309,1769943145236,583.49347316,0.00037581,120]
[404198310,1769943154552,192.32182385,0.00037581,120]
[404198311,1769943168399,249.05116752,0.00037581,120]
[404198312,1769943170360,182.08558047,0.00037581,120]
[404198313,1769943187204,494.56345017,0.00037581,120]
[404198314,1769943192377,153.42576875,0.00037581,120]
[404198315,1769943217288,500.0,0.00037581,120]
[404198316,1769943217525,502.66500573,0.00037581,120]
[404198317,1769943244343,500.0,0.00037581,120]
[404198318,1769943244613,500.0,0.00037581,120]
[404198319,1769943245410,262.32294686,0.00037581,120]
[404198320,1769943252303,500.0,0.00037581,120]
[404198321,1769943252542,500.0,0.00037581,120]
[404198322,1769943252806,500.0,0.00037581,120]
[404198323,1769943253064,238.88444671,0.00037581,120]
[404198324,1769943274234,512.43669713,0.0003758,120]
[404198325,1769943282715,522.7245525,0.0003758,120]
[404198326,1769943304769,189.58304304,0.0003758,120]
[404198327,1769943311147,2000.0,0.0003758,120]
[404198328,1769943313047,447.50995955,0.0003758,120]
[404198329,1769943328683,162.72125823,0.0003758,120]
[404198330,1769943332012,443.61522268,0.0003758,120]
[404198331,1769943339950,242.25559135,0.0003758,30]
[404198332,1769943370100,237.49674593,0.0003758,120]
[404198333,1769943405232,230.02106229,0.0003758,120]
[404198334,1769943410514,202.74261122,0.0003758,120]
[404198335,1769943419091,301.62032946,0.0003758,120]
[404198336,1769943428318,292.36880717,0.0003758,120]
[404198337,1769943483493,255.62526936,0.0003758,120]
[404198338,1769943504420,210.52572131,0.0003758,120]
[404198339,1769943616983,487.15318209,0.00037585,120]
[404198341,1769943683761,419.92690782,0.00037585,120]
[404198342,1769943697013,169.23910781,0.00037585,120]
[404198343,1769943710259,1196.11,0.00037585,120]
[404198344,1769943710500,1196.11,0.00037585,120]
[404198345,1769943710743,1196.11,0.00037585,120]
[404198346,1769943710993,1196.11,0.00037585,120]
[404198347,1769943711291,1196.11,0.00037585,120]
[404198348,1769943711625,1196.11,0.00037585,120]
[404198349,1769943711773,1196.11,0.00037585,120]
[404198350,1769943712010,1196.11,0.00037585,120]
[404198351,1769943712257,1196.11,0.00037585,120]
[404198352,1769943712493,1196.11,0.00037585,120]
[404198353,1769943712746,1196.11,0.00037585,120]
[404198354,1769943713014,1196.11,0.00037585,120]
[404198355,1769943713378,1196.11,0.00037585,120]
[404198356,1769943713619,1196.11,0.00037585,120]
[404198357,1769943713859,1196.11,0.00037585,120]
[404198358,1769943714341,1196.11,0.00037585,120]
[404198359,1769943714591,1196.11,0.00037585,120]
[404198360,1769943714827,1196.11,0.00037585,120]
[404198361,1769943715069,1196.11,0.00037585,120]
[404198362,1769943715451,1196.11,0.00037585,120]
[404198363,1769943715697,1196.11,0.00037585,120]
[404198364,1769943715940,1196.11,0.00037585,120]
[404198365,1769943716614,1196.11,0.00037585,120]
[404198366,1769943716850,1196.30974315,0.00037585,120]
[404198367,1769943718986,390.07109278,0.00037585,120]
[404198368,1769943732204,307.44098113,0.00037585,120]
[404198369,1769943785464,500.0,0.00037585,120]
[404198370,1769943785710,500.0,0.00037585,120]
[404198371,1769943785964,500.0,0.00037585,120]
[404198372,1769943786202,500.0,0.00037585,120]
[404198373,1769943786453,500.0,0.00037585,120]
[404198375,1769943786747,500.0,0.00037585,120]
[404198376,1769943786992,500.0,0.00037585,120]
[404198377,1769943787236,500.0,0.00037585,120]
[404198378,1769943787483,500.0,0.00037585,120]
[404198379,1769943787736,500.0,0.00037585,120]
[404198380,1769943787976,580.19762942,0.00037585,120]
[404198381,1769943793717,235.60544315,0.00037585,120]
[404198383,1769943914707,181.72038379,0.00037585,120]
[404198384,1769944024266,471.72641705,0.00037585,120]
[404198385,1769944163703,-404.04332947,0.00012503,2]
[404198386,1769944166284,-380.37506151,0.00012503,2]
[404198387,1769944168975,-230.08900767,0.00012503,2]
[404198388,1769944171772,-152.80228227,0.00012503,2]
[404198389,1769944173206,-214.10871006,0.00012503,2]
[404198390,1769944175929,-304.73831557,0.00012503,2]
[404198391,1769944178066,-204.69093765,0.00012503,2]
[404198392,1769944181139,-180.43935781,0.00012503,2]
[404198394,1769944230613,5000.0,0.00012454,2]
[404198414,1769944232072,-597.0,0.00012503,2]
[404198415,1769944232082,-3245.71,0.00012503,2]
[404198416,1769944232093,-398.0,0.00012503,2]
[404198417,1769944232104,-2915.49493429,0.00012503,2]
[404198418,1769944232113,-300.0,0.00013171,2]
[404198419,1769944232122,-300.0,0.00013171,2]
[404198420,1769944232132,-300.0,0.00013171,2]
[404198421,1769944232140,-300.0,0.00013171,2]
[404198422,1769944232149,-1200.0,0.00013171,2]
[404198423,1769944232159,-186.79400539,0.00013172,2]
[404198424,1769944232168,-5029.00261595,0.00013172,2]
[404198429,1769944238186,-1598.12775725,0.00013172,2]
[404198430,1769944238196,-500.0,0.00013271,2]
[404198431,1769944238206,-500.0,0.00013271,2]
[404198432,1769944238216,-203.77032744,0.00013271,2]
[404198433,1769944238225,-500.0,0.00013271,2]
[404198434,1769944238234,-257.40479371,0.00013271,2]
[404198452,1769944243777,1500.0,0.00030137,120]
[404198505,1769944244910,-2552.41721671,0.00013171,2]
[404198506,1769944244920,-242.59520629,0.00013271,2]
[404198507,1769944244929,-500.0,0.00013271,2]
[404198508,1769944244939,-500.0,0.00013271,2]
[404198509,1769944244948,-500.0,0.00013271,2]
[404198510,1769944244958,-500.0,0.00013271,2]
[404198511,1769944244967,-500.0,0.00013271,2]
[404198512,1769944244977,-500.0,0.00013271,2]
[404198513,1769944244987,-500.0,0.00013271,2]
[404198514,1769944244996,-500.0,0.00013271,2]
[404198515,1769944245006,-500.0,0.00013271,2]
[404198516,1769944245015,-500.0,0.00013271,2]
[404198517,1769944245024,-500.0,0.00013271,2]
[404198518,1769944245034,-639.41584324,0.00013271,2]
[404198519,1769944245044,-500.0,0.00013271,2]
[404198520,1769944245053,-500.0,0.00013271,2]
[404198521,1769944245063,-500.0,0.00013271,2]
[404198522,1769944245073,-500.0,0.00013271,2]
[404198523,1769944245083,-500.0,0.00013271,2]
[404198524,1769944245092,-500.0,0.00013271,2]
[404198525,1769944245102,-500.0,0.00013271,2]
[404198526,1769944245111,-500.0,0.00013271,2]
[404198527,1769944245121,-500.0,0.00013271,2]
[404198528,1769944245130,-500.0,0.00013271,2]
[404198529,1769944245139,-500.0,0.00013271,2]
[404198530,1769944245149,-500.0,0.00013271,2]
[404198531,1769944245158,-500.0,0.00013271,2]
[404198532,1769944245167,-500.0,0.00013271,2]
[404198533,1769944245177,-500.0,0.00013271,2]
[404198534,1769944245187,-500.0,0.00013271,2]
[404198535,1769944245196,-500.0,0.00013271,2]
[404198536,1769944245206,-500.0,0.00013271,2]
[404198537,1769944245219,-61.68731327,0.00013271,2]
[404198538,1769944245231,-438.31268673,0.00013271,2]
[404198539,1769944245240,-500.0,0.00013271,2]
[404198540,1769944245251,-500.0,0.00013271,2]
[404198541,1769944245261,-500.0,0.00013271,2]
[404198542,1769944245270,-500.0,0.00013271,2]
[404198543,1769944245280,-500.0,0.00013271,2]
[404198544,1769944245290,-500.0,0.00013271,2]
[404198545,1769944245299,-235.10714044,0.00013271,2]
[404198546,1769944245309,-500.0,0.00013271,2]
[404198547,1769944245318,-500.0,0.00013271,2]
[404198548,1769944245327,-500.0,0.00013271,2]
[404198549,1769944245337,-500.0,0.00013271,2]
[404198550,1769944245346,-500.0,0.00013271,2]
[404198551,1769944245356,-500.0,0.00013271,2]
[404198552,1769944245365,-500.0,0.00013271,2]
[404198553,1769944245376,-500.0,0.00013271,2]
[404198554,1769944245386,-500.0,0.00013271,2]
[404198555,1769944245396,-500.0,0.00013271,2]
[404198556,1769944245405,-500.0,0.00013271,2]
[404198557,1769944245415,-500.0,0.00013271,2]
[404198558,1769944245425,-500.0,0.00013271,2]
[404198559,1769944245434,-519.89765099,0.00013271,2]
[404198560,1769944245443,-500.0,0.00013271,2]
[404198561,1769944245454,-500.0,0.00013271,2]
[404198562,1769944245463,-500.0,0.00013271,2]
[404198563,1769944245473,-500.0,0.00013271,2]
[404198564,1769944245482,-500.0,0.00013271,2]
[404198565,1769944245491,-500.0,0.00013271,2]
[404198566,1769944245500,-340.49716236,0.00013271,2]
[404198567,1769944245515,-159.50283764,0.00013271,2]
[404198568,1769944245524,-500.0,0.00013271,2]
[404198569,1769944245533,-500.0,0.00013271,2]
[404198570,1769944245543,-500.0,0.00013271,2]
[404198571,1769944245552,-500.0,0.00013271,2]
[404198572,1769944245561,-500.0,0.00013271,2]
[404198573,1769944245571,-327.1097683,0.00013271,2]
[404198581,1769944525367,151.0,0.00037592,120]
[404198582,1769944526201,156.587,0.00037592,120]
[404198583,1769944526858,162.380719,0.00037592,120]
[404198584,1769944527636,168.3888056,0.00037592,120]
[404198585,1769944528312,174.61919141,0.00037592,120]
[404198586,1769944529119,181.08010149,0.00037592,120]
[404198587,1769944529679,187.78006525,0.00037592,120]
[404198588,1769944530337,194.72792766,0.00037592,120]
[404198589,1769944531013,201.93286099,0.00037592,120]
[404198590,1769944531776,209.40437684,0.00037592,120]
[404198591,1769944532844,217.15233878,0.00037592,120]
[404198592,1769944533534,225.18697532,0.00037592,120]
[404198593,1769944534227,233.51889341,0.00037592,120]
[404198594,1769944534971,242.15909246,0.00037592,120]
[404198595,1769944535654,251.11897888,0.00037592,120]
[404198596,1769944536435,251.11897888,0.00037592,120]
[404198597,1769944550996,311.49721765,0.00037592,120]
[404198598,1769944572327,1157.75953754,0.00012057,2]
[404198599,1769944670422,5000.0,0.00012454,2]
[404198600,1769944693177,5000.0,0.00012454,2]
[404198601,1769944696578,202417.527846,0.00037592,60]
[404198602,1769944716359,0.01,0.00012454,2]
[404198603,1769944716380,3973.40472217,0.00012454,2]
[404198604,1769944816230,156.86040915,0.00037594,120]
[404198605,1769944908814,6026.60527783,0.00012269,2]
[404198606,1769944908836,2748.41294237,0.00012269,2]
[404198610,1769944969686,771.03,0.00037594,120]
[404198612,1769945030508,500.0,0.00037594,120]
[404198613,1769945030740,337.36678637,0.00037594,120]
[404198614,1769945191120,-599.0,0.00012621,2]
[404198615,1769945191143,-150.0,0.00012717,2]
[404198616,1769945191164,-300.0,0.00013266,2]
[404198617,1769945191184,-292.0,0.00013266,2]
[404198618,1769945191205,-1200.0,0.00013266,2]
[404198619,1769945191227,-300.0,0.00013266,2]
[404198620,1769945191248,-626.60176036,0.00013267,2]
[404198621,1769945191269,-500.0,0.00013267,2]
[404198622,1769945191290,-500.0,0.00013267,2]
[404198623,1769945191310,-500.0,0.00013267,2]
[404198624,1769945191330,-500.0,0.00013267,2]
[404198625,1769945191440,-500.0,0.00013267,2]
[404198626,1769945191463,-500.0,0.00013267,2]
[404198627,1769945191484,-500.0,0.00013267,2]
[404198628,1769945191505,-500.0,0.00013267,2]
[404198629,1769945191525,-500.0,0.00013267,2]
[404198630,1769945191545,-500.0,0.00013267,2]
[404198631,1769945191568,-194.92595644,0.00013267,2]
[404198632,1769945191589,-511.52892627,0.00013267,2]
[404198633,1769945191609,-500.0,0.00013267,2]
[404198634,1769945191629,-500.0,0.00013267,2]
[404198635,1769945191653,-500.0,0.00013267,2]
[404198636,1769945191674,-500.0,0.00013267,2]
[404198637,1769945191695,-500.0,0.00013267,2]
[404198638,1769945191717,-500.0,0.00013267,2]
[404198639,1769945191738,-500.0,0.00013267,2]
[404198640,1769945191760,-500.0,0.00013267,2]
[404198641,1769945191781,-173.3364316,0.00013271,2]
[404198642,1769945191801,-571.6961553,0.00013271,2]
[404198643,1769945191821,-500.0,0.00013273,2]
[404198644,1769945191840,-500.0,0.00013273,2]
[404198645,1769945191859,-222.8707806,0.00013273,2]
[404198646,1769945191878,-447.10829843,0.00013273,2]
[404198647,1769945268190,10000.01,0.00012,5]
[404198648,1769945268212,10000.01,0.00012,5]
[404198649,1769945268233,3747.70496488,0.00012,5]
[404198704,1769945432263,-5000.0,0.00013139,2]
[404198705,1769945432276,-606.0,0.00013139,2]
[404198706,1769945432285,-300.0,0.00013272,2]
[404198707,1769945432294,-1172.0,0.00013272,2]
[404198708,1769945432304,-150.0,0.00013272,2]
[404198709,1769945432313,-52.89170157,0.00013273,2]
[404198710,1769945432324,-500.0,0.00013273,2]
[404198711,1769945432333,-500.0,0.00013273,2]
[404198712,1769945432341,-500.0,0.00013273,2]
[404198713,1769945432350,-500.0,0.00013273,2]
[404198714,1769945432359,-500.0,0.00013273,2]
[404198715,1769945432368,-500.0,0.00013273,2]
[404198716,1769945432377,-171.53340131,0.00013273,2]
[404198717,1769945432385,-500.0,0.00013273,2]
[404198718,1769945432394,-303.05218116,0.00013273,2]
[404198719,1769945432403,-500.0,0.00013273,2]
[404198720,1769945432412,-500.0,0.00013273,2]
[404198721,1769945432421,-591.30697883,0.00013273,2]
[404198722,1769945432430,-500.0,0.00013273,2]
[404198723,1769945432439,-500.0,0.00013273,2]
[404198724,1769945432448,-500.0,0.00013273,2]
[404198725,1769945432457,-500.0,0.00013273,2]
[404198726,1769945432466,-500.0,0.00013273,2]
[404198727,1769945432474,-489.77984152,0.00013273,2]
[404198743,1769945440540,-2233.36506463,0.00013173,2]
[404198744,1769945440550,-32923.23604777,0.00013273,2]
[404198763,1769945444500,-309.73,0.00013273,2]
[404198764,1769945444512,-840.39430465,0.00013273,2]
[404198765,1769945444521,-336.23725898,0.00013273,2]
[404198766,1769945444531,-500.0,0.00013273,2]
[404198767,1769945444540,-500.0,0.00013273,2]
[404198768,1769945444549,-300.0,0.00013537,2]
[404198769,1769945444559,-300.0,0.00013537,2]
[404198770,1769945444568,-300.0,0.00013537,2]
[404198771,1769945444577,-300.0,0.00013537,2]
[404198772,1769945444586,-300.0,0.00013537,2]
[404198773,1769945444595,-300.0,0.00013537,2]
[404198774,1769945444604,-300.0,0.00013537,2]
[404198775,1769945444614,-300.0,0.00013537,2]
[404198776,1769945444623,-300.0,0.00013537,2]
[404198777,1769945444633,-300.0,0.00013537,2]
[404198778,1769945444642,-300.0,0.00013537,2]
[404198779,1769945444651,-300.0,0.00013537,2]
[404198780,1769945444660,-300.0,0.00013537,2]
[404198781,1769945444669,-300.0,0.00013537,2]
[404198782,1769945444678,-300.0,0.00013537,2]
[404198783,1769945444687,-600.0,0.00013537,2]
[404198784,1769945444697,-236.138228,0.00013699,2]
[404198785,1769945444706,-1000.0,0.00013699,2]
[404198786,1769945444719,-405.13371794,0.00013821,2]
[404198787,1769945444729,-211.72145418,0.00013821,2]
[404198788,1769945444738,-300.0,0.00014551,2]
[404198789,1769945444749,-720.0,0.00014891,2]
[404198790,1769945444758,-177.0,0.00015272,2]
[404198791,1769945444767,-864.0,0.0001638,2]
[404198792,1769945444777,-246.39562273,0.00016786,2]
[404198793,1769945444788,-204.0,0.00017272,2]
[404198794,1769945444798,-289.86583379,0.00017373,2]
[404198795,1769945444892,-608.42003136,0.00017373,2]
[404198796,1769945444905,-327.08362765,0.00017373,2]
[404198797,1769945444914,-935.62413336,0.0001747,2]
[404198798,1769945445220,-1732.118701,0.0001747,2]
[404198809,1769945446482,-300.0,0.0001747,2]
[404198810,1769945446723,-14443.08524007,0.0001747,2]
[404198811,1769945446734,-2551.51881541,0.0001747,2]
[404198812,1769945446743,-198.962,0.00017471,2]
[404198813,1769945446752,-19.01649728,0.00018018,2]
[404198814,1769945446764,-874.25259224,0.00018018,2]
[404198815,1769945484386,-1065.66,0.00017838,2]
[404198817,1769945640520,500.0,0.00037595,120]
[404198818,1769945640805,284.388,0.00037595,120]
[404198823,1769945900771,163551.63174508,0.00037592,20]
[404198824,1769946158431,500.0,0.00030137,120]
[404198825,1769946327918,1782.95,0.0003,120]
[404199138,1769946638585,-3768.83729105,0.00013068,2]
[404199139,1769946638597,-1231.16270895,0.00013068,2]
[404199140,1769946638607,-605.0,0.00013068,2]
[404199141,1769946638616,-150.0,0.00013134,2]
[404199142,1769946638626,-178.9,0.000132,2]
[404199143,1769946638635,-270.1117694,0.00013272,2]
[404199144,1769946638647,-29.8882306,0.00013272,2]
[404199145,1769946638657,-1172.0,0.00013272,2]
[404199146,1769946638667,-500.0,0.00013273,2]
[404199147,1769946638676,-500.0,0.00013273,2]
[404199148,1769946638686,-500.0,0.00013273,2]
[404199149,1769946638697,-171.53340131,0.00013273,2]
[404199150,1769946638709,-500.0,0.00013273,2]
[404199151,1769946638721,-500.0,0.00013273,2]
[404199152,1769946638733,-500.0,0.00013273,2]
[404199153,1769946638745,-91.44567608,0.00013273,2]
[404199154,1769946638772,-408.55432392,0.00013273,2]
[404199155,1769946638782,-500.0,0.00013273,2]
[404199156,1769946638793,-500.0,0.00013273,2]
[404199157,1769946638805,-500.0,0.00013273,2]
[404199158,1769946638817,-500.0,0.00013273,2]
[404199159,1769946638828,-591.30697883,0.00013273,2]
[404199160,1769946638840,-500.0,0.00013273,2]
[404199161,1769946638851,-500.0,0.00013273,2]
[404199162,1769946638863,-287.47433438,0.00013273,2]
[404199176,1769946640797,-212.52566562,0.00013273,2]
[404199177,1769946640809,-266.7432918,0.00013273,2]
[404199191,1769946646760,-233.2567082,0.00013273,2]
[404199192,1769946646771,-500.0,0.00013273,2]
[404199193,1769946646781,-489.77984152,0.00013273,2]
[404199194,1769946646791,-300.0,0.00013537,2]
[404199195,1769946646801,-500.0,0.00013821,2]
[404199196,1769946646811,-500.0,0.00013821,2]
[404199197,1769946646823,-300.0,0.00014551,2]
[404199198,1769946646833,-152.242106,0.0001474,2]
[404199199,1769946646843,-189.7828812,0.0001474,2]
[404199200,1769946646854,-356.12772559,0.0001474,2]
[404199225,1769947652921,5000.0,0.00012454,2]
[404199249,1769947831614,-5000.0,0.00012665,2]
[404199251,1769947831624,-599.0,0.00012665,2]
[404199253,1769947831634,-150.0,0.00012729,2]
[404199255,1769947831643,-205.1102723,0.00012857,2]
[404199257,1769947831653,-233.42207071,0.00012898,2]
[404199259,1769947831662,-225.16446718,0.00012928,2]
[404199263,1769947831676,-74.83553282,0.00012928,2]
[404199265,1769947831686,-10659.14571438,0.00012929,2]
[404199267,1769947831696,-718.8628463,0.00012929,2]
[404199270,1769947831707,-534.64380724,0.00012929,2]
[404199273,1769947831722,-8582.07709748,0.00012929,2]
[404199274,1769947831730,-1954.19443156,0.0001297,2]
[404199276,1769947831739,-500.0,0.0001307,2]
[404199278,1769947831748,-500.0,0.0001307,2]
[404199280,1769947831757,-500.0,0.0001307,2]
[404199282,1769947831766,-500.0,0.0001307,2]
[404199284,1769947831775,-500.0,0.0001307,2]
[404199286,1769947831784,-65.72063579,0.0001307,2]
[404199289,1769947831795,-434.27936421,0.0001307,2]
[404199291,1769947831804,-500.0,0.0001307,2]
[404199293,1769947831813,-500.0,0.0001307,2]
[404199295,1769947831822,-390.1698807,0.0001307,2]
[404199297,1769947831831,-500.0,0.0001307,2]
[404199299,1769947831841,-500.0,0.0001307,2]
[404199301,1769947831850,-202.26486696,0.0001307,2]
[404199303,1769947831859,-500.0,0.0001307,2]
[404199305,1769947831868,-500.0,0.0001307,2]
[404199307,1769947831877,-500.0,0.0001307,2]
[404199309,1769947831887,-500.0,0.0001307,2]
[404199311,1769947831896,-500.0,0.0001307,2]
[404199312,1769947831905,-500.0,0.0001307,2]
[404199315,1769947831916,-500.0,0.0001307,2]
[404199317,1769947831925,-500.0,0.0001307,2]
[404199319,1769947831934,-500.0,0.0001307,2]
[404199321,1769947831943,-500.0,0.0001307,2]
[404199323,1769947831952,-500.0,0.0001307,2]
[404199325,1769947831961,-500.0,0.0001307,2]
[404199327,1769947831971,-500.0,0.0001307,2]
[404199329,1769947831980,-500.0,0.0001307,2]
[404199331,1769947831989,-500.0,0.0001307,2]
[404199333,1769947831997,-536.18235287,0.0001307,2]
[404199335,1769947832006,-500.0,0.0001307,2]
[404199337,1769947832015,-350.63940543,0.0001307,2]
[404199339,1769947832024,-500.0,0.0001307,2]
[404199341,1769947832033,-500.0,0.0001307,2]
[404199343,1769947832042,-500.0,0.0001307,2]
[404199345,1769947832051,-500.0,0.0001307,2]
[404199347,1769947832061,-500.0,0.0001307,2]
[404199349,1769947832071,-500.0,0.0001307,2]
[404199351,1769947832081,-500.0,0.0001307,2]
[404199352,1769947832090,-500.0,0.0001307,2]
[404199354,1769947832100,-500.0,0.0001307,2]
[404199357,1769947832109,-500.0,0.0001307,2]
[404199358,1769947832119,-500.0,0.0001307,2]
[404199360,1769947832128,-500.0,0.0001307,2]
[404199363,1769947832139,-500.0,0.0001307,2]
[404199365,1769947832148,-500.0,0.0001307,2]
[404199367,1769947832157,-401.29309575,0.0001307,2]
[404199369,1769947832168,-98.70690425,0.0001307,2]
[404199371,1769947832178,-500.0,0.0001307,2]
[404199373,1769947832187,-500.0,0.0001307,2]
[404199375,1769947832196,-500.0,0.0001307,2]
[404199377,1769947832205,-500.0,0.0001307,2]
[404199379,1769947832214,-500.0,0.0001307,2]
[404199381,1769947832223,-500.0,0.0001307,2]
[404199383,1769947832232,-7408.42250075,0.0001307,2]
[404199411,1769947837747,-89.06802684,0.0001307,2]
[404199412,1769947837756,-500.0,0.00013273,2]
[404199413,1769947837765,-180.83148737,0.00013273,2]
[404199414,1769947837774,-500.0,0.00013273,2]
[404199415,1769947837783,-399.75562085,0.00013273,2]
[404199416,1769947837792,-500.0,0.00013273,2]
[404199417,1769947837802,-222.8707806,0.00013273,2]
[404199418,1769947837811,-500.0,0.00013273,2]
[404199419,1769947837822,-500.0,0.00013273,2]